bitfinex-derivatives/quotes_SOLF0:USTF0_20251119
["timestamp","ask_amount","ask_price","bid_price","bid_amount"]
[1763564664983,0.04982413,137.93,137.9,0.04940739]
[1763564665183,0.04982413,137.93,137.9,101.64030739]
[1763564665677,0.04982413,137.93,137.9,108.17120739]
[1763564665881,0.04982413,137.93,137.9,0.04940739]
[1763564666180,5.86984538,137.92,137.9,0.04940739]
[1763564666390,5.86984538,137.91,137.8,101.6662]
[1763564666574,21.84984538,137.9,137.8,101.6673]
[1763564666879,5.86984538,137.89,137.79,101.6741]
[1763564667078,5.86984538,137.88,137.8,101.666]
[1763564667277,0.04940113,137.85,137.83,0.05276734]
[1763564667473,0.04970628,137.85,137.83,0.05232235]
[1763564669278,0.04970628,137.85,137.83,108.23162235]
[1763564669581,3.01,137.96,137.86,101.6211]
[1763564669787,3.01,137.94,137.83,108.1792]
[1763564669983,3.01,137.92,137.83,108.1792]
[1763564670283,8.73852082,137.91,137.82,101.6525]
[1763564670492,3.01,137.89,137.8,101.6692]
[1763564670786,3.06019659,137.86,137.83,0.04680869]
[1763564671178,3.01,137.85,137.83,0.04680869]
[1763564671379,14.20964244,137.85,137.83,0.04680869]
[1763564671579,0.05019659,137.86,137.83,0.04680869]
[1763564671887,15.96,137.85,137.83,0.04680869]
[1763564672392,18.97,137.85,137.83,0.04680869]
[1763564672982,3.06019659,137.86,137.83,0.04680869]
[1763564673289,18.97,137.85,137.83,0.04680869]
[1763564673680,0.05019659,137.86,137.83,0.04680869]
[1763564673978,0.05019659,137.86,137.84,108.1739]
[1763564674178,0.05019659,137.86,137.84,6.5338]
[1763564674782,0.05019659,137.86,137.83,0.04680869]
[1763564674977,0.05019659,137.86,137.83,101.69180869]
[1763564675178,3.01,137.98,137.91,108.1192]
[1763564675597,3.01,137.98,137.91,6.5304]
[1763564675983,3.01,137.98,137.91,108.1191]
[1763564676193,0.05096616,137.96,137.93,0.04712377]
[1763564677284,5.19794392,138.01,137.96,101.5522]
[1763564677484,15.96,138.01,137.95,101.5544]
[1763564677786,15.96,138.01,137.96,101.5515]
[1763564678188,15.96,138.01,137.96,6.5281]
[1763564678493,3.07765509,138.0,137.97,0.05136661]
[1763564679792,15.96,137.99,137.97,0.05136661]
[1763564681285,3.07765509,138.0,137.97,0.05136661]
[1763564681485,15.96,137.99,137.97,0.05136661]
[1763564681694,16.00765509,138.0,137.97,0.05136661]
[1763564681891,3.03,137.99,137.97,0.05136661]
[1763564683194,16.00765509,138.0,137.97,0.05136661]
[1763564683383,15.98765509,138.0,137.97,0.05136661]
[1763564684391,0.04765509,138.0,137.98,101.5358]
[1763564684700,8.42448164,138.07,138.0,101.5219]
[1763564684896,8.42448164,138.07,138.01,101.5123]
[1763564684897,15.94,138.06,138.01,101.5123]
[1763564685290,15.94,138.06,137.99,101.5231]
[1763564685291,18.97,138.06,137.99,101.5231]
[1763564685697,0.0503846,138.04,138.01,0.05367657]
[1763564685894,0.0503846,138.04,138.01,6.57927657]
[1763564686384,0.0503846,138.04,138.01,0.05367657]
[1763564687295,3.0803846,138.04,138.01,0.05367657]
[1763564689303,15.92,138.03,138.01,0.05367657]
[1763564689484,18.95,138.03,138.01,0.05367657]
[1763564689686,15.9,138.02,138.01,0.05367657]
[1763564690492,18.93,138.02,138.01,0.05367657]
[1763564690899,3.03,138.01,137.97,6.5278]
[1763564691596,3.03,138.01,137.94,101.5615]
[1763564691801,3.03,138.01,137.95,101.5598]
[1763564691995,0.04755135,137.99,137.97,6.57315275]
[1763564692301,0.05158497,137.99,137.98,101.5372]
[1763564693002,0.05158497,137.99,137.98,6.5274]
[1763564693293,0.05158497,137.99,137.97,0.04575275]
[1763564693494,0.05158497,137.99,137.97,6.57345275]
[1763564696608,3.03,138.07,137.97,6.57345275]
[1763564696609,3.03,138.07,138.02,6.5253]
[1763564696809,15.88,138.06,138.02,6.5253]
[1763564697012,3.03,138.11,138.04,101.4934]
[1763564697201,3.03,138.11,138.05,101.4857]
[1763564697402,3.03,138.15,138.07,101.4705]
[1763564697702,0.05118934,138.12,138.1,6.57270557]
[1763564697896,3.08118934,138.12,138.1,0.05130557]
[1763564698500,0.05118934,138.12,138.1,0.05130557]
[1763564699099,0.05118934,138.12,138.01,25.64823228]
[1763564699100,3.08118934,138.12,138.01,25.64823228]
[1763564699404,3.03,138.11,138.0,101.5209]
[1763564699608,3.03,138.1,138.0,101.5209]
[1763564699909,3.03,138.1,137.98,101.5356]
[1763564699910,3.03,138.1,137.99,101.5289]
[1763564700110,0.04585555,138.06,138.03,0.05448752]
[1763564701407,0.04585555,138.06,138.03,101.55178752]
[1763564701815,0.04585555,138.06,138.04,6.5243]
[1763564702113,15.86,138.13,138.06,101.4788]
[1763564702309,3.03,138.14,138.07,101.4707]
[1763564702608,15.86,138.13,138.06,101.4788]
[1763564702817,15.86,138.13,138.04,101.4889]
[1763564703116,0.04961114,138.1,138.07,0.05012454]
[1763564703413,3.03,138.08,137.98,101.5359]
[1763564703605,3.03,138.07,137.98,101.5375]
[1763564703806,18.89,138.07,137.96,101.5524]
[1763564704017,18.89,138.07,137.98,101.5363]
[1763564704311,3.03,138.12,138.04,101.4935]
[1763564704505,0.04900921,138.09,138.07,0.04688357]
[1763564704712,3.03,138.16,138.08,101.463]
[1763564705007,3.03,138.16,138.06,101.4752]
[1763564705204,8.40609807,138.16,138.06,101.4752]
[1763564705403,8.40609807,138.16,138.08,6.5224]
[1763564705598,8.40609807,138.16,138.06,101.4752]
[1763564705804,0.05250942,138.12,138.1,0.05552978]
[1763564706613,18.89,138.2,138.1,0.05552978]
[1763564706806,18.89,138.2,138.08,101.4589]
[1763564706807,3.03,138.18,138.09,101.4539]
[1763564707006,3.03,138.18,138.1,101.4477]
[1763564707206,3.03,138.18,138.08,101.4633]
[1763564707412,3.03,138.18,138.09,101.4563]
[1763564707608,3.07,138.17,138.08,101.4639]
[1763564707808,0.05529243,138.14,138.12,0.05148025]
[1763564708115,0.05529243,138.14,138.12,6.57198025]
[1763564708418,0.05529243,138.14,138.12,0.05148025]
[1763564708811,3.12529243,138.14,138.12,0.05148025]
[1763564709514,3.07,138.13,138.03,101.5005]
[1763564709719,15.84,138.12,138.01,5.82651544]
[1763564709915,5.36355975,138.11,138.01,5.82651544]
[1763564710123,24.27407763,138.1,138.01,101.5137]
[1763564710418,24.27407763,138.1,138.04,0.04638965]
[1763564710419,3.07,138.06,138.04,0.04638965]
[1763564710614,18.91,138.06,138.04,0.04638965]
[1763564711010,15.84,138.06,138.04,0.04638965]
[1763564711717,3.07,138.05,137.98,101.5373]
[1763564712315,3.07,138.05,137.99,101.5296]
[1763564712516,18.91,138.05,137.99,101.5296]
[1763564712820,0.04721544,138.03,138.01,0.05085011]
[1763564713219,0.04721544,138.03,138.01,6.57665011]
[1763564713419,3.07,138.1,138.02,101.5069]
[1763564713722,5.37145577,138.13,138.07,101.4692]
[1763564714016,8.91648858,138.18,138.11,101.4419]
[1763564714017,3.07,138.18,138.11,101.4419]
[1763564714225,15.84,138.17,138.11,101.4419]
[1763564714523,0.05206669,138.15,138.13,0.05013412]
[1763564714728,0.05206669,138.15,138.13,6.57013412]
[1763564714919,4.0,138.24,138.19,101.3831]
[1763564715315,4.0,138.24,138.2,101.3754]
[1763564715622,15.84,138.29,138.23,101.3537]
[1763564715821,3.07,138.32,138.24,101.3447]
[1763564716120,3.11964265,138.27,138.25,0.05311213]
[1763564716319,3.11973692,138.27,138.25,0.04713794]
[1763564716512,0.04973692,138.27,138.25,0.04713794]
[1763564717624,3.11973692,138.27,138.25,0.04713794]
[1763564718322,3.11973692,138.27,138.17,117.238]
[1763564718618,5.34823063,138.28,138.21,101.3672]
[1763564718814,3.07,138.3,138.2,101.3727]
[1763564719011,104.3812,138.29,138.15,101.4059]
[1763564719215,0.0522843,138.23,138.21,101.42171736]
[1763564719413,3.07,138.32,138.21,0.05046171]
[1763564719619,3.07,138.29,138.17,101.3962]
[1763564719825,3.07,138.24,138.14,101.4198]
[1763564720028,9.5856,138.23,138.12,15.84]
[1763564720325,5.35317389,138.22,138.12,15.84]
[1763564720516,3.07,138.24,138.14,6.5194]
[1763564720716,5.35389591,138.24,138.16,101.4039]
[1763564720910,11.98648858,138.28,138.18,101.43830244]
[1763564720911,0.05524919,138.2,138.18,101.43830244]
[1763564721120,0.0467511,138.2,138.18,0.05270739]
[1763564722215,3.1167511,138.2,138.09,107.27931544]
[1763564722410,3.07,138.2,138.09,101.4564]
[1763564722620,3.07,138.18,138.07,101.4711]
[1763564722821,18.91,138.17,138.08,101.4635]
[1763564723016,18.91,138.17,138.09,101.4537]
[1763564723216,18.91,138.17,138.11,6.5212]
[1763564723420,0.0534886,138.14,138.12,0.04962245]
[1763564723624,0.05206985,138.14,138.12,101.48834117]
[1763564723824,0.05206985,138.14,138.12,0.05424117]
[1763564724223,3.35206985,138.14,138.12,0.05424117]
[1763564724621,3.35206985,138.14,138.03,15.84]
[1763564724622,3.35206985,138.14,138.03,5.82651544]
[1763564724921,3.3,138.13,138.0,107.34531544]
[1763564725124,24.49389039,138.12,138.01,101.5147]
[1763564725321,5.35389039,138.11,138.0,12.35281544]
[1763564725525,3.3,138.1,138.0,5.82651544]
[1763564725723,0.04615566,138.07,138.04,0.04759864]
[1763564726026,3.34615566,138.07,138.04,0.04759864]
[1763564726329,3.34615566,138.07,137.97,5.82651544]
[1763564726330,3.34615566,138.07,137.97,101.5441]
[1763564726524,3.3,138.05,137.97,6.5275]
[1763564726825,24.49389039,138.05,137.94,107.38881544]
[1763564727026,19.14,138.05,137.96,101.548]
[1763564727222,0.0459896,138.02,137.99,0.05493365]
[1763564728722,3.3459896,138.02,137.99,0.05493365]
[1763564729330,0.0459896,138.02,137.99,0.05493365]
[1763564729522,0.0459896,138.02,137.99,101.58273365]
[1763564729731,0.0459896,138.02,138.0,101.5225]
[1763564729926,15.84,138.08,138.01,101.5106]
[1763564730230,19.14,138.1,138.04,6.5243]
[1763564730432,3.3,138.09,138.04,108.0178]
[1763564730626,3.3,138.09,138.03,101.5004]
[1763564730932,0.04995136,138.07,138.05,0.05166534]
[1763564731332,3.3,138.13,138.06,101.4781]
[1763564731632,19.14,138.16,138.08,107.9861]
[1763564731827,5.37759183,138.15,138.09,101.4558]
[1763564732330,0.04821052,138.13,138.11,0.05487724]
[1763564732732,3.34821052,138.13,138.11,0.05487724]
[1763564733130,0.04821052,138.13,138.11,0.05487724]
[1763564733328,0.04821052,138.13,138.11,108.01607724]
[1763564733731,5.37779496,138.19,138.13,6.5198]
[1763564733924,21.19779496,138.19,138.13,101.427]
[1763564734128,3.3,138.21,138.15,101.4118]
[1763564734526,3.3,138.21,138.14,101.4185]
[1763564734725,0.04682174,138.19,138.16,0.04793966]
[1763564735126,3.34682174,138.19,138.16,0.04793966]
[1763564736136,3.34682174,138.19,138.09,6.5219]
[1763564736338,3.3,138.18,138.09,101.4556]
[1763564736635,3.3,138.18,138.1,6.5214]
[1763564736831,9.96037221,138.22,138.13,101.4265]
[1763564737129,8.91648858,138.24,138.16,0.04884276]
[1763564737130,0.0476672,138.19,138.16,0.04884276]
[1763564737334,3.3476672,138.19,138.16,0.04884276]
[1763564739527,3.3,138.18,138.07,5.82651544]
[1763564739733,3.3,138.17,138.08,101.4639]
[1763564739933,19.12,138.17,138.07,107.29491544]
[1763564740133,19.12,138.17,138.09,101.4556]
[1763564740332,19.12,138.17,138.1,101.4493]
[1763564740530,19.12,138.17,138.08,101.4588]
[1763564740834,0.05105666,138.14,138.12,0.04806985]
[1763564742237,3.35105666,138.14,138.12,0.04806985]
[1763564742642,0.05105666,138.14,138.12,0.04806985]
[1763564742947,3.35105666,138.14,138.12,0.04806985]
[1763564743638,3.3,138.13,138.12,0.04806985]
[1763564743943,3.3,138.13,138.05,101.4823]
[1763564744241,3.3,138.13,138.06,6.5234]
[1763564744448,3.3,138.11,137.99,101.5277]
[1763564744646,3.3,138.09,137.99,101.5289]
[1763564744947,3.3,138.07,137.97,5.82651544]
[1763564745142,3.35361959,138.05,138.02,0.04773419]
[1763564746441,8.74745631,138.05,138.02,0.04773419]
[1763564746643,3.35361959,138.05,138.02,0.04773419]
[1763564746845,19.1,138.04,138.02,0.04773419]
[1763564747044,15.85361959,138.05,138.02,0.04773419]
[1763564747349,0.05361959,138.05,138.02,0.04773419]
[1763564747836,0.05361959,138.05,138.02,101.55313419]
[1763564748335,0.05361959,138.05,138.02,0.04773419]
[1763564748539,0.05361959,138.05,138.02,101.54983419]
[1763564748741,0.05361959,138.05,138.02,0.04773419]
[1763564748940,0.05361959,138.05,138.03,6.5247]
[1763564749140,0.05361959,138.05,138.02,0.04773419]
[1763564749646,3.35361959,138.05,138.02,0.04773419]
[1763564750346,0.05361959,138.05,138.02,101.55203419]
[1763564751348,0.05361959,138.05,138.03,6.5247]
[1763564752249,3.3,138.09,138.05,6.524]
[1763564752644,3.3,138.09,138.01,101.5119]
[1763564753243,0.04685839,138.06,138.04,0.05160803]
[1763564753638,0.04685839,138.06,138.04,6.57600803]
[1763564753844,15.78,138.11,138.04,0.05160803]
[1763564754037,3.3,138.13,138.04,101.54120803]
[1763564754244,15.78,138.12,138.08,6.5225]
[1763564754440,19.08,138.12,138.06,101.4732]
[1763564754743,3.3,138.13,138.09,6.522]
[1763564755250,0.05285774,138.12,138.1,0.05573212]
[1763564756653,0.05285774,138.12,138.1,6.57723212]
[1763564757146,0.05285774,138.12,138.1,0.05573212]
[1763564757340,3.35285774,138.12,138.1,0.05573212]
[1763564757538,0.05285774,138.12,138.1,0.05573212]
[1763564758450,0.05285774,138.12,138.1,6.57713212]
[1763564758756,8.69120018,138.18,138.14,6.5196]
[1763564758956,3.3,138.17,138.14,6.5196]
[1763564759145,3.3,138.17,138.1,101.4445]
[1763564759649,3.35362993,138.15,138.12,0.04598917]
[1763564760044,0.05362993,138.15,138.12,0.04598917]
[1763564760245,3.35362993,138.15,138.12,6.56658917]
[1763564760452,0.05362993,138.15,138.12,6.56658917]
[1763564760642,0.05362993,138.15,138.12,0.04598917]
[1763564760842,3.35362993,138.15,138.12,0.04598917]
[1763564761050,0.05362993,138.15,138.12,0.04598917]
[1763564761252,0.05362993,138.15,138.13,6.5202]
[1763564761850,0.05362993,138.15,138.12,0.04598917]
[1763564762055,0.05362993,138.15,138.04,101.491]
[1763564762056,3.35362993,138.15,138.04,101.491]
[1763564762249,3.3,138.15,138.07,101.4712]
[1763564762450,8.68996163,138.15,138.09,6.522]
[1763564762649,3.3,138.13,138.09,6.522]
[1763564762845,3.3,138.13,138.04,101.4927]
[1763564763046,3.3,138.09,138.07,0.05434388]
[1763564763249,3.3,138.09,138.0,101.5224]
[1763564763453,3.3,138.09,137.99,101.5294]
[1763564763848,15.76,138.08,137.99,101.5294]
[1763564764053,3.3,138.09,138.01,101.5147]
[1763564764356,0.04745123,138.06,138.04,0.05111174]
[1763564764958,3.34745123,138.06,138.04,0.05111174]
[1763564765158,3.34745123,138.06,137.96,107.37621544]
[1763564765159,8.75573095,138.06,137.96,107.37621544]
[1763564765355,3.3,138.04,137.93,107.39701544]
[1763564765653,3.3,138.04,137.95,101.5594]
[1763564765859,3.3,138.04,137.96,101.5511]
[1763564766151,3.3,138.04,137.99,0.05407281]
[1763564766152,0.05516911,138.01,137.99,0.05407281]
[1763564767259,0.05516911,138.01,137.99,6.58077281]
[1763564768252,3.06,138.08,138.03,6.5246]
[1763564768460,15.76,138.07,138.03,6.5246]
[1763564768757,18.82,138.08,138.03,6.5246]
[1763564768957,5.41145729,138.07,138.03,6.5246]
[1763564769158,15.76,138.1,138.04,6.5244]
[1763564769353,0.0527089,138.08,138.06,0.05417045]
[1763564769558,6.66037221,138.16,138.1,101.448]
[1763564769758,5.40989785,138.15,138.09,101.4564]
[1763564769945,6.66037221,138.18,138.1,101.4493]
[1763564770149,5.4092472,138.17,138.1,101.4493]
[1763564770348,8.4692472,138.16,138.08,101.4621]
[1763564770559,3.11241502,138.13,138.11,0.04856687]
[1763564770864,3.11381291,138.13,138.11,0.04856687]
[1763564771156,8.52306011,138.13,138.11,0.04856687]
[1763564771361,0.05381291,138.13,138.11,0.04856687]
[1763564771960,0.05381291,138.13,138.11,6.56956687]
[1763564772264,3.06,138.21,138.15,101.4127]
[1763564772463,5.40716245,138.21,138.17,101.3958]
[1763564772654,3.06,138.25,138.18,101.3893]
[1763564772861,8.46570328,138.25,138.18,101.3893]
[1763564773057,3.06,138.24,138.14,101.4188]
[1763564773260,3.06,138.24,138.12,101.4314]
[1763564773261,8.52006341,138.23,138.2,0.05200931]
[1763564773461,3.06,138.21,138.14,101.4198]
[1763564773757,5.40570328,138.2,138.1,101.4429]
[1763564773964,5.40570328,138.19,138.11,101.4411]
[1763564774259,5.40570328,138.18,138.1,101.4429]
[1763564774455,0.05521089,138.15,138.13,0.05553719]
[1763564774656,0.04595472,138.15,138.13,0.05553719]
[1763564774967,3.10595472,138.15,138.13,0.05553719]
[1763564775666,0.04595472,138.15,138.13,0.05553719]
[1763564776866,0.04595472,138.15,138.13,6.57563719]
[1763564777167,5.40731792,138.2,138.13,101.48143719]
[1763564777468,5.40731792,138.19,138.13,6.57583719]
[1763564777764,5.40649442,138.18,138.13,6.5203]
[1763564777959,3.06,138.2,138.13,6.5203]
[1763564778160,0.05281911,138.17,138.14,0.05465922]
[1763564778867,3.11281911,138.17,138.14,0.05465922]
[1763564779756,3.06,138.16,138.14,0.05465922]
[1763564779957,3.06,138.15,138.14,0.05465922]
[1763564780158,8.46694842,138.15,138.05,101.483]
[1763564780357,8.46694842,138.15,138.06,101.478]
[1763564780558,8.46694842,138.15,138.07,101.4709]
[1763564780858,8.46694842,138.15,138.07,101.47]
[1763564781264,0.05513385,138.12,138.1,0.05000874]
[1763564781761,0.05513385,138.12,138.1,6.57150874]
[1763564781965,21.12887828,138.18,138.11,101.4389]
[1763564782168,15.72,138.18,138.11,101.4389]
[1763564782368,6.66037221,138.22,138.12,101.4346]
[1763564782555,21.12820186,138.21,138.13,101.4264]
[1763564782760,15.72,138.21,138.16,6.5187]
[1763564782959,0.04841055,138.2,138.17,0.0542119]
[1763564783258,3.10841055,138.2,138.17,0.0542119]
[1763564783460,3.06,138.19,138.09,101.4537]
[1763564783660,3.06,138.19,138.09,101.4551]
[1763564784559,0.05380295,138.15,138.13,0.04832473]
[1763564786862,0.05380295,138.15,138.13,6.56852473]
[1763564787065,0.05380295,138.15,138.13,0.04832473]
[1763564788161,6.66037221,138.23,138.17,101.3938]
[1763564788364,7.37685314,138.29,138.19,101.3833]
[1763564788666,3.21,138.26,138.16,9.75511401]
[1763564788871,3.21,138.24,138.17,101.3976]
[1763564789073,3.21,138.28,138.18,101.3896]
[1763564789373,3.21,138.28,138.22,0.0523202]
[1763564789374,0.04928846,138.24,138.22,0.0523202]
[1763564789968,0.04928846,138.24,138.22,6.5681202]
[1763564790572,3.25928846,138.24,138.22,0.0523202]
[1763564790770,3.25928846,138.24,138.14,101.4163]
[1763564790970,18.95,138.23,138.14,101.4163]
[1763564791165,8.59520287,138.22,138.17,6.5183]
[1763564791371,15.74,138.25,138.16,101.4038]
[1763564791572,6.5129,138.29,138.22,6.5159]
[1763564791775,21.13354823,138.28,138.22,6.5159]
[1763564792071,3.21,138.26,138.24,0.04803001]
[1763564792969,3.21,138.26,138.18,6.5176]
[1763564793172,3.21,138.25,138.18,6.5176]
[1763564793770,8.60354823,138.25,138.18,6.5176]
[1763564793977,5.39354823,138.24,138.18,6.5176]
[1763564794178,3.26344179,138.23,138.2,0.05497939]
[1763564794481,3.21,138.22,138.2,0.05497939]
[1763564795070,8.65607904,138.23,138.2,0.05497939]
[1763564795271,0.05344179,138.23,138.2,0.05497939]
[1763564795575,3.21,138.3,138.25,6.5145]
[1763564795879,3.21,138.3,138.2,111.12761401]
[1763564796067,8.60132096,138.3,138.22,101.3614]
[1763564796270,3.21,138.3,138.25,6.5145]
[1763564796478,0.05039392,138.29,138.26,0.0548909]
[1763564797473,0.05039392,138.29,138.27,6.5135]
[1763564797664,0.05039392,138.29,138.26,0.0548909]
[1763564797665,3.21,138.35,138.26,101.3828909]
[1763564797869,3.21,138.35,138.24,111.09831401]
[1763564798179,3.21,138.35,138.26,101.3319]
[1763564798674,0.04780565,138.32,138.29,0.05013686]
[1763564799275,3.28780565,138.32,138.29,0.05013686]
[1763564799480,3.28780565,138.32,138.21,9.75511401]
[1763564799783,6.512,138.31,138.21,9.75511401]
[1763564799970,5.37624072,138.3,138.21,9.75511401]
[1763564800167,18.96,138.32,138.21,111.12121401]
[1763564800371,5.37437545,138.31,138.24,6.515]
[1763564800570,5.37437545,138.31,138.25,0.05416115]
[1763564800571,0.0540151,138.28,138.25,0.05416115]
[1763564800887,0.0540151,138.28,138.25,6.56866115]
[1763564801373,0.0540151,138.28,138.25,0.05416115]
[1763564803081,0.0540151,138.28,138.25,101.39026115]
[1763564803278,3.24,138.4,138.29,101.309]
[1763564803473,3.24,138.39,138.29,101.309]
[1763564803678,3.24,138.37,138.28,101.3172]
[1763564803983,3.24,138.36,138.26,101.3312]
[1763564804176,0.05369132,138.32,138.3,0.05225196]
[1763564805376,0.05369132,138.32,138.3,6.56425196]
[1763564806080,15.7,138.4,138.32,101.2872]
[1763564806475,18.94,138.4,138.3,101.3026]
[1763564806670,18.94,138.4,138.31,101.2954]
[1763564806879,0.04699995,138.37,138.34,0.04601293]
[1763564807678,3.28699995,138.37,138.34,0.04601293]
[1763564807878,3.24,138.36,138.26,101.3306]
[1763564808176,3.24,138.35,138.24,9.75511401]
[1763564808375,3.24,138.35,138.21,101.3618]
[1763564808376,3.24,138.31,138.21,101.3618]
[1763564808577,104.5538,138.29,138.19,6.5172]
[1763564808785,3.24,138.28,138.16,101.4022]
[1763564808978,3.28856722,138.23,138.21,0.04837813]
[1763564809187,3.29222205,138.23,138.21,0.04837813]
[1763564809785,3.29222205,138.23,138.12,101.4315]
[1763564809985,3.24,138.23,138.14,101.4197]
[1763564810479,8.60094854,138.23,138.12,101.4325]
[1763564810784,3.29529951,138.19,138.16,0.055162]
[1763564811692,15.75529951,138.19,138.16,0.055162]
[1763564812481,3.24,138.18,138.16,0.055162]
[1763564813189,3.24,138.26,138.17,101.398]
[1763564813481,8.61473456,138.26,138.17,101.398]
[1763564813690,3.24,138.21,138.1,101.4473]
[1763564813877,3.24,138.2,138.11,101.4422]
[1763564814373,0.04618995,138.17,138.14,101.46593244]
[1763564814574,0.05567684,138.17,138.15,101.4125]
[1763564814779,0.05567684,138.17,138.15,6.519]
[1763564814978,0.05567684,138.17,138.15,107.9318]
[1763564815176,3.24,138.28,138.22,6.5157]
[1763564815381,5.37868066,138.3,138.24,101.345]
[1763564815587,3.24,138.32,138.24,101.345]
[1763564815788,3.24,138.32,138.25,6.5144]
[1763564815986,3.24,138.32,138.24,101.3426]
[1763564816185,0.05575017,138.29,138.27,0.05438705]
[1763564817081,3.29575017,138.29,138.27,0.05438705]
[1763564817278,8.67440847,138.29,138.27,0.05438705]
[1763564817495,3.29575017,138.29,138.27,0.05438705]
[1763564817888,0.05575017,138.29,138.27,0.05438705]
[1763564818094,3.29575017,138.29,138.27,0.05438705]
[1763564819588,0.05575017,138.29,138.27,0.05438705]
[1763564819796,3.29575017,138.29,138.27,0.05438705]
[1763564820197,3.29575017,138.29,138.21,101.3682]
[1763564820198,8.67357779,138.29,138.21,101.3682]
[1763564820397,5.37782762,138.28,138.21,6.5163]
[1763564820607,3.24,138.29,138.17,101.3946]
[1763564820892,5.38005187,138.28,138.18,101.3897]
[1763564821089,0.0548131,138.24,138.22,0.05269338]
[1763564821290,0.04947451,138.24,138.22,0.05269338]
[1763564821692,5.38067511,138.31,138.24,101.3455]
[1763564821994,3.24,138.33,138.23,101.3489]
[1763564822190,3.24,138.32,138.21,101.3654]
[1763564822395,8.61299496,138.31,138.23,101.3533]
[1763564822590,8.61299496,138.31,138.22,101.3587]
[1763564822591,8.61299496,138.3,138.2,101.3743]
[1763564822897,3.29432173,138.26,138.24,0.04644616]
[1763564823099,0.0494589,138.26,138.24,0.04779431]
[1763564824890,3.2894589,138.26,138.24,0.04779431]
[1763564825693,3.2894589,138.26,138.16,101.3998]
[1763564825999,3.2894589,138.26,138.17,101.3964]
[1763564826000,3.24,138.25,138.17,101.3964]
[1763564826299,3.24,138.25,138.13,15.68]
[1763564826300,3.24,138.2,138.08,101.4599]
[1763564826504,3.24,138.18,138.08,101.4599]
[1763564826693,9.7587,138.17,138.09,6.522]
[1763564826998,0.04733622,138.14,138.12,0.04966418]
[1763564827302,0.04733622,138.14,138.12,6.57016418]
[1763564828395,0.04733622,138.14,138.12,0.04966418]
[1763564828797,0.04733622,138.14,138.12,6.56996418]
[1763564828988,15.68,138.2,138.13,101.4208]
[1763564829193,3.16,138.23,138.14,101.4188]
[1763564829394,3.16,138.21,138.11,101.4393]
[1763564829697,3.16,138.21,138.14,101.42]
[1763564829902,3.16,138.21,138.17,6.5182]
[1763564830093,0.05419917,138.2,138.18,0.05269577]
[1763564830493,0.05419917,138.2,138.18,6.57039577]
[1763564830695,5.3860721,138.27,138.2,101.3758]
[1763564831100,3.16,138.28,138.22,6.5158]
[1763564831404,8.54567348,138.28,138.22,6.5158]
[1763564831603,3.20765899,138.26,138.24,0.05448667]
[1763564831801,3.20765899,138.26,138.24,0.04813432]
[1763564832800,0.04765899,138.26,138.24,0.04813432]
[1763564833401,0.04765899,138.26,138.24,6.56293432]
[1763564833598,3.20765899,138.26,138.24,0.04813432]
[1763564835307,0.04765899,138.26,138.24,0.04813432]
[1763564836910,0.04765899,138.26,138.24,6.56303432]
[1763564837502,3.16,138.34,138.27,101.3228]
[1763564837799,3.16,138.34,138.24,101.3407]
[1763564837999,3.16,138.33,138.26,6.514]
[1763564838203,3.16,138.32,138.22,101.3583]
[1763564838406,0.05313179,138.28,138.26,0.04918904]
[1763564838907,3.16,138.35,138.26,101.37458904]
[1763564839105,5.38872399,138.35,138.28,101.3165]
[1763564839608,3.16,138.36,138.27,101.3239]
[1763564839792,3.16,138.36,138.29,101.3096]
[1763564839993,0.0523844,138.34,138.31,0.0540073]
[1763564840194,0.0523844,138.34,138.31,6.5655073]
[1763564840698,3.2123844,138.34,138.31,0.0540073]
[1763564841104,0.0523844,138.34,138.31,0.0540073]
[1763564841895,0.0523844,138.34,138.32,6.511]
[1763564842107,0.0523844,138.34,138.31,0.0540073]
[1763564842693,3.2123844,138.34,138.31,0.0540073]
[1763564842896,3.2123844,138.34,138.24,101.3466]